bitfinex/quotes_BTCUSD_20240911
["timestamp","ask_amount","ask_price","bid_price","bid_amount"]
[1726019462712,0.0968,57048.0,57039.0,0.35449674]
[1726019462957,0.0968,57048.0,57040.0,0.023]
[1726019463180,0.002,57047.0,57040.0,0.023]
[1726019463404,0.002,57047.0,57038.0,0.023]
[1726019464347,0.0968,57048.0,57042.0,0.25449674]
[1726019464554,0.0968,57048.0,57043.0,0.023]
[1726019464826,0.0968,57048.0,57047.0,0.25449674]
[1726019464827,0.003,57048.0,57047.0,0.25449674]
[1726019465065,0.0024818,57049.0,57047.0,0.55343692]
[1726019465307,0.0024818,57049.0,57048.0,0.27594018]
[1726019465552,0.0054875,57061.0,57048.0,0.27594018]
[1726019465553,0.0054875,57061.0,57048.0,0.29894018]
[1726019465796,0.0054875,57061.0,57055.0,0.25449674]
[1726019466015,0.0054875,57061.0,57055.0,0.66993692]
[1726019466016,1e-06,57056.0,57055.0,0.66993692]
[1726019466468,0.0054875,57061.0,57060.0,0.25449674]
[1726019466731,0.000819,57077.0,57061.0,0.1165]
[1726019466930,0.000819,57077.0,57064.0,0.17594018]
[1726019467378,0.000819,57077.0,57064.0,0.29894018]
[1726019467594,0.52782518,57079.0,57064.0,0.3123227]
[1726019467837,0.0024818,57083.0,57079.0,0.25449674]
[1726019468042,0.0024818,57083.0,57080.0,0.1]
[1726019468252,0.0024818,57083.0,57080.0,0.11338252]
[1726019469147,0.0034818,57083.0,57080.0,0.01338252]
[1726019469443,0.001,57083.0,57080.0,0.01338252]
[1726019469659,0.004899,57085.0,57081.0,0.03638252]
[1726019469874,0.004899,57085.0,57082.0,0.02908793]
[1726019470091,0.001,57083.0,57082.0,0.02908793]
[1726019470520,0.001,57083.0,57082.0,0.05208793]
[1726019470997,0.001,57083.0,57082.0,0.22802811]
[1726019471198,0.004899,57085.0,57082.0,0.58252485]
[1726019471424,0.000824,57088.0,57085.0,0.0802]
[1726019471653,0.000824,57088.0,57087.0,0.43043692]
[1726019471901,0.000824,57088.0,57087.0,0.53043692]
[1726019472123,0.000824,57088.0,57087.0,0.55343692]
[1726019473284,0.000819,57091.0,57087.0,0.55343692]
[1726019473285,0.000819,57091.0,57087.0,0.56443692]
[1726019473498,0.000819,57096.0,57089.0,0.17594018]
[1726019473731,0.000819,57096.0,57095.0,0.43043692]
[1726019473959,0.000819,57105.0,57095.0,0.53043692]
[1726019474197,0.000819,57105.0,57098.0,0.17594018]
[1726019474456,0.000819,57105.0,57099.0,0.19894018]
[1726019474676,0.0041473,57115.0,57099.0,0.44817387]
[1726019474891,0.52782518,57113.0,57110.0,0.25449674]
[1726019475120,0.52782518,57113.0,57100.0,0.1]
[1726019475121,0.52782518,57113.0,57111.0,0.123]
[1726019475347,0.0041473,57115.0,57111.0,0.123]
[1726019475580,0.002,57113.0,57111.0,0.1]
[1726019475828,0.0341473,57115.0,57111.0,0.1]
[1726019475829,0.0041473,57115.0,57112.0,0.01]
[1726019476326,0.0061473,57115.0,57112.0,0.01]
[1726019476543,0.002,57113.0,57111.0,0.004]
[1726019476764,0.2212,57112.0,57111.0,0.004]
[1726019477025,0.396294,57112.0,57111.0,0.004]
[1726019477236,0.2212,57112.0,57111.0,0.004]
[1726019477452,0.98242318,57112.0,57111.0,0.004]
[1726019477696,0.98242318,57112.0,57083.0,0.93448248]
[1726019477697,0.1015,57098.0,57083.0,0.07578248]
[1726019477905,0.1015,57098.0,57084.0,0.70376536]
[1726019478133,0.002,57095.0,57084.0,0.17594018]
[1726019478374,0.1015,57098.0,57084.0,0.17594018]
[1726019478609,0.1015,57098.0,57085.0,0.25449674]
[1726019478831,0.276639,57098.0,57085.0,0.43043692]
[1726019479049,0.1015,57091.0,57079.0,0.25449674]
[1726019479311,0.1015,57091.0,57071.0,0.0837]
[1726019479312,0.002,57090.0,57071.0,0.0837]
[1726019479572,0.002,57085.0,57072.0,0.17594018]
[1726019479765,0.1015,57084.0,57072.0,0.17594018]
[1726019479996,0.1015,57084.0,57074.0,0.25449674]
[1726019480234,0.1015,57084.0,57079.0,0.25449674]
[1726019480450,0.1015,57084.0,57080.0,0.20138985]
[1726019480936,0.1015,57090.0,57081.0,0.1]
[1726019481152,0.1015,57090.0,57082.0,0.17594018]
[1726019481393,0.1015,57090.0,57083.0,0.123]
[1726019481615,0.1015,57090.0,57084.0,0.20837916]
[1726019481874,0.1015,57090.0,57085.0,0.1]
[1726019482155,0.1015,57090.0,57085.0,0.29894018]
[1726019482629,0.1015,57090.0,57086.0,0.00849678]
[1726019482857,0.1015,57090.0,57087.0,0.023]
[1726019483076,0.102319,57090.0,57087.0,0.023]
[1726019483334,0.002,57086.0,57079.0,0.1]
[1726019483570,0.132319,57090.0,57069.0,0.25449674]
[1726019483571,0.1015,57085.0,57070.0,0.1]
[1726019483805,0.1015,57085.0,57071.0,0.17594018]
[1726019484040,0.1035,57085.0,57072.0,0.1]
[1726019484273,0.002,57084.0,57073.0,0.17594018]
[1726019484521,0.1015,57085.0,57080.0,0.25449674]
[1726019484794,0.1015,57085.0,57081.0,0.17594018]
[1726019485037,0.1015,57085.0,57081.0,0.27594018]
[1726019485261,0.1015,57085.0,57082.0,0.05304369]
[1726019485490,0.1015,57085.0,57083.0,0.17594018]
[1726019485977,0.1015,57085.0,57084.0,0.1]
[1726019486233,0.102319,57090.0,57084.0,0.1]
[1726019486713,0.102319,57090.0,57086.0,0.25449674]
[1726019486941,0.000819,57090.0,57087.0,0.35428387]
[1726019487394,0.000819,57090.0,57087.0,0.17834369]
[1726019487617,0.000819,57090.0,57087.0,0.123]
[1726019487839,0.002,57089.0,57087.0,0.123]
[1726019488079,0.000819,57090.0,57087.0,0.023]
[1726019488583,0.000819,57090.0,57084.0,0.023]
[1726019488825,0.002,57087.0,57084.0,0.023]
[1726019489070,0.002,57088.0,57085.0,0.00871656]
[1726019489316,0.002,57088.0,57087.0,0.005]
[1726019489774,0.002,57088.0,57084.0,0.023]
[1726019490011,0.002,57088.0,57084.0,0.035]
[1726019490485,0.1862,57089.0,57084.0,0.035]
[1726019491451,0.1862,57089.0,57084.0,0.023]
[1726019491685,0.1862,57089.0,57087.0,0.002]
[1726019492156,0.1862,57089.0,57084.0,0.023]
[1726019492417,0.1862,57089.0,57084.0,0.033]
[1726019492638,0.1882,57089.0,57085.0,0.03171624]
[1726019492851,0.1862,57089.0,57085.0,0.03171624]
[1726019493294,0.1033,57089.0,57087.0,0.014]
[1726019493536,0.000819,57090.0,57088.0,0.19894018]
[1726019493804,0.000819,57090.0,57089.0,0.1]
[1726019494037,0.000819,57090.0,57089.0,0.29894018]
[1726019494286,0.000819,57090.0,57089.0,0.36499524]
[1726019494509,0.02,57091.0,57089.0,0.37370892]
[1726019494751,0.1033,57102.0,57090.0,0.45343692]
[1726019495041,0.1033,57102.0,57097.0,0.25449674]
[1726019495278,0.1033,57102.0,57098.0,0.27594018]
[1726019495496,0.1033,57102.0,57099.0,0.023]
[1726019495738,0.1033,57102.0,57098.0,0.10861859]
[1726019495957,0.002,57101.0,57100.0,0.00861603]
[1726019496177,0.1053,57102.0,57098.0,0.1]
[1726019496402,0.1053,57102.0,57100.0,0.00861603]
[1726019496641,0.002,57101.0,57098.0,0.006]
[1726019497078,0.03,57102.0,57098.0,0.006]
[1726019497079,0.002,57099.0,57098.0,0.006]
[1726019497581,0.393334,57099.0,57098.0,0.006]
[1726019497808,0.803602,57099.0,57098.0,0.006]
[1726019498499,0.803602,57099.0,57089.0,0.001634]
[1726019498500,0.002,57091.0,57089.0,0.001634]
[1726019498728,0.1353,57090.0,57089.0,0.001634]
[1726019498969,0.803686,57090.0,57089.0,0.001634]
[1726019499440,1.32995018,57090.0,57089.0,0.001634]
[1726019499902,0.62930218,57090.0,57089.0,0.001634]
[1726019500612,0.003,57090.0,57089.0,0.001634]
[1726019501068,0.003,57090.0,57089.0,0.02724707]
[1726019501288,0.003,57090.0,57089.0,0.001634]
[1726019501552,0.033,57090.0,57089.0,0.001634]
[1726019501782,0.03,57090.0,57089.0,0.001634]
[1726019502021,0.033,57090.0,57089.0,0.001634]
[1726019502473,0.032,57090.0,57089.0,0.001634]
[1726019502693,0.035,57090.0,57089.0,0.001634]
[1726019502941,0.1361,57090.0,57089.0,0.001634]
[1726019503164,0.1331,57090.0,57089.0,0.001634]
[1726019503390,0.368262,57090.0,57089.0,0.001634]
[1726019503608,0.368262,57090.0,57089.0,0.013634]
[1726019504048,0.1931,57090.0,57089.0,0.013634]
[1726019504716,0.1931,57090.0,57089.0,0.001634]
[1726019505671,0.368262,57090.0,57089.0,0.001634]
[1726019505913,1.32945018,57090.0,57089.0,0.001634]
[1726019506151,0.62880218,57090.0,57089.0,0.013634]
[1726019506398,0.1877,57090.0,57089.0,0.013634]
[1726019506630,0.1857,57090.0,57089.0,0.001634]
[1726019506864,0.1857,57090.0,57089.0,0.003634]
[1726019506865,0.1011,57090.0,57089.0,0.003634]
[1726019507562,0.1857,57095.0,57089.0,0.026634]
[1726019507777,0.1011,57095.0,57089.0,0.026634]
[1726019508058,0.1011,57095.0,57090.0,0.46610032]
[1726019508293,0.1011,57095.0,57091.0,0.1]
[1726019509000,0.1011,57095.0,57089.0,0.001634]
[1726019509001,0.03,57091.0,57089.0,0.001634]
[1726019509249,0.1011,57090.0,57089.0,0.014634]
[1726019509715,0.1011,57090.0,57089.0,0.001634]
[1726019511562,0.1011,57090.0,57089.0,0.015634]
[1726019512051,0.1031,57090.0,57089.0,0.015634]
[1726019513696,0.1331,57090.0,57089.0,0.015634]
[1726019513930,0.308262,57090.0,57089.0,0.015634]
[1726019514157,0.1331,57090.0,57089.0,0.015634]
[1726019515152,1.36627598,57090.0,57089.0,0.015634]
[1726019516068,1.36627598,57090.0,57089.0,0.001634]
[1726019516296,1.36727598,57090.0,57089.0,0.001634]
[1726019517682,1.32945018,57090.0,57089.0,0.001634]
[1726019517921,1.32945018,57090.0,57062.0,0.0836243]
[1726019517922,0.002,57063.0,57062.0,0.0033243]
[1726019518151,0.557733,57063.0,57062.0,0.0033243]
[1726019518392,0.968222,57063.0,57062.0,0.0033243]
[1726019518892,1.49465118,57063.0,57062.0,0.0033243]
[1726019519132,0.89477318,57063.0,57062.0,0.0033243]
[1726019519356,0.36904018,57063.0,57062.0,0.0033243]
[1726019519584,0.54428418,57063.0,57062.0,0.0033243]
[1726019520041,0.36904018,57063.0,57062.0,0.0033243]
[1726019520263,0.1931,57063.0,57062.0,0.0033243]
[1726019520488,0.1331,57063.0,57062.0,0.0033243]
[1726019520742,0.002,57071.0,57062.0,0.0033243]
[1726019521010,0.002,57071.0,57063.0,0.03199243]
[1726019521011,0.032,57071.0,57063.0,0.03199243]
[1726019521244,0.032,57071.0,57063.0,0.023]
[1726019521472,0.002,57070.0,57063.0,0.123]
[1726019521720,0.002,57070.0,57063.0,0.1]
[1726019521721,0.032,57070.0,57063.0,0.1]
[1726019522496,0.032,57070.0,57062.0,0.0033243]
[1726019522724,0.1011,57077.0,57067.0,0.25449674]
[1726019522990,0.03,57081.0,57069.0,0.0866]
[1726019523227,0.03,57081.0,57068.0,0.34198387]
[1726019523228,0.002,57075.0,57070.0,0.023]
[1726019523473,0.002,57074.0,57068.0,0.123]
[1726019524149,0.002,57074.0,57068.0,0.023]
[1726019524382,0.002,57074.0,57065.0,0.023]
[1726019524621,0.002,57075.0,57066.0,0.17594018]
[1726019524878,0.002,57075.0,57067.0,0.123]
[1726019525341,0.002,57070.0,57067.0,0.123]
[1726019525812,0.002,57073.0,57067.0,0.123]
[1726019526052,0.002,57070.0,57067.0,0.123]
[1726019526549,0.002,57070.0,57067.0,0.014]
[1726019526550,0.207229,57068.0,57067.0,0.014]
[1726019526775,0.291829,57068.0,57067.0,0.014]
[1726019527007,0.98370906,57068.0,57067.0,0.014]
[1726019527236,1.68462706,57068.0,57067.0,0.014]
[1726019527675,0.979322,57063.0,57062.0,0.0033243]
[1726019527909,1.15526218,57063.0,57062.0,0.0033243]
[1726019528356,1.21526218,57063.0,57062.0,0.0033243]
[1726019528608,1.68035118,57063.0,57062.0,0.0033243]
[1726019528844,2.03084018,57063.0,57062.0,0.0033243]
[1726019529076,2.03084018,57063.0,57030.0,0.0866]
[1726019529077,0.1311,57038.0,57037.0,0.0027088]
[1726019529328,0.1311,57038.0,57037.0,0.0078882]
[1726019529329,1.33024718,57038.0,57037.0,0.0078882]
[1726019529577,1.33463057,57038.0,57037.0,0.0078882]
[1726019530062,0.98398757,57038.0,57037.0,0.0078882]
[1726019530285,0.2777,57038.0,57037.0,0.0078882]
[1726019530952,0.2457,57038.0,57037.0,0.0078882]
[1726019531204,0.002,57042.0,57037.0,0.0078882]
[1726019531424,0.03,57040.0,57037.0,0.0078882]
[1726019531651,0.03,57038.0,57037.0,0.0078882]
[1726019531907,0.001,57038.0,57037.0,0.0198882]
[1726019532403,0.03,57043.0,57037.0,0.0078882]
[1726019532645,0.001,57040.0,57037.0,0.0155768]
[1726019533130,0.03,57043.0,57037.0,0.0155768]
[1726019533587,0.001,57038.0,57037.0,0.0155768]
[1726019533846,0.001,57038.0,57037.0,0.0385768]
[1726019534761,0.03,57043.0,57037.0,0.0385768]
[1726019534996,0.001,57040.0,57037.0,0.0505768]
[1726019535444,0.03,57043.0,57037.0,0.0385768]
[1726019535680,0.002,57040.0,57037.0,0.0385768]
[1726019535925,0.350581,57049.0,57037.0,0.0198882]
[1726019535926,0.003,57038.0,57037.0,0.0198882]
[1726019536155,0.64416118,57038.0,57037.0,0.0198882]
[1726019536395,1.33514718,57038.0,57037.0,0.0078882]
[1726019536619,1.33514718,57038.0,57037.0,0.0198882]
[1726019536862,0.98450418,57038.0,57037.0,0.0198882]
[1726019537330,1.33514718,57038.0,57037.0,0.0198882]
[1726019537575,1.68579018,57038.0,57037.0,0.0198882]
[1726019538062,0.96876,57028.0,57027.0,0.0038227]
[1726019538291,1.94050092,57028.0,57027.0,0.0038227]
[1726019538508,2.29120492,57028.0,57027.0,0.0038227]
[1726019538738,2.29120492,57028.0,57014.0,0.001638]
[1726019538739,0.09,57015.0,57014.0,0.001638]
[1726019538961,1.23721292,57015.0,57014.0,0.0020172]
[1726019539182,1.94078092,57015.0,57014.0,0.0020172]
[1726019540392,2.10880536,57015.0,57014.0,0.0020172]
[1726019540625,1.75802136,57015.0,57014.0,0.0020172]
[1726019541105,0.45854018,57015.0,57014.0,0.0020172]
[1726019541358,0.199,57015.0,57014.0,0.0020172]
[1726019541592,0.21,57015.0,57014.0,0.0020172]
[1726019541836,0.38594018,57015.0,57014.0,0.0020172]
[1726019542070,0.37494018,57015.0,57014.0,0.0020172]
[1726019542320,0.55033218,57015.0,57014.0,0.0020172]
[1726019542565,0.55933218,57015.0,57014.0,0.0020172]
[1726019542786,0.91011618,57015.0,57014.0,0.0020172]
[1726019543034,1.25190018,57015.0,57014.0,0.0020172]
[1726019543281,1.25690018,57015.0,57014.0,0.0020172]
[1726019543522,2.03020536,57015.0,57014.0,0.0020172]
[1726019543770,1.67942136,57015.0,57014.0,0.0020172]
[1726019543996,1.25690018,57015.0,57014.0,0.0020172]
[1726019544449,1.25190018,57015.0,57014.0,0.0020172]
[1726019544679,1.25168934,57015.0,57014.0,0.0020172]
[1726019544893,1.25568934,57015.0,57014.0,0.0020172]
[1726019546081,1.25168934,57015.0,57014.0,0.0020172]
[1726019547015,1.60647334,57015.0,57014.0,0.0020172]
[1726019547263,2.02899452,57015.0,57014.0,0.0020172]
[1726019547963,2.37977852,57015.0,57014.0,0.0020172]
[1726019548217,2.46037852,57015.0,57014.0,0.0020172]
[1726019548676,2.45937852,57015.0,57014.0,0.0020172]
[1726019549135,2.10859452,57015.0,57014.0,0.0020172]
[1726019549384,2.11259452,57015.0,57014.0,0.0020172]
[1726019549863,1.68607334,57015.0,57014.0,0.0020172]
[1726019550105,2.11959452,57015.0,57014.0,0.0020172]
[1726019550586,1.69707334,57015.0,57014.0,0.0020172]
[1726019550837,1.34628934,57015.0,57014.0,0.0020172]
[1726019551295,0.99550534,57015.0,57014.0,0.0020172]
[1726019552681,0.64472134,57015.0,57014.0,0.0020172]
[1726019552951,0.99550534,57015.0,57014.0,0.0020172]
[1726019553652,0.98450534,57015.0,57014.0,0.0020172]
[1726019553886,0.99550534,57015.0,57014.0,0.0020172]
[1726019555497,0.98532434,57015.0,57014.0,0.0020172]
[1726019555730,0.98632434,57015.0,57014.0,0.0040172]
[1726019556191,1.33710834,57015.0,57014.0,0.0040172]
[1726019556886,0.98632434,57015.0,57014.0,0.0040172]
[1726019557132,0.55194034,57015.0,57014.0,0.0040172]
[1726019557358,0.09160816,57015.0,57014.0,0.0040172]
[1726019557606,0.031819,57015.0,57014.0,0.0040172]
[1726019557821,0.001819,57015.0,57014.0,0.0040172]
[1726019558505,0.000819,57015.0,57014.0,0.0020172]
[1726019558741,0.000819,57015.0,57014.0,0.0843172]
[1726019558966,0.000819,57015.0,57014.0,0.0863172]
[1726019558967,0.001819,57015.0,57014.0,0.0863172]
[1726019559201,0.001819,57015.0,57014.0,0.27930952]
[1726019559495,0.03,57032.0,57021.0,0.42252118]
[1726019559721,0.52782518,57027.0,57022.0,0.123]
[1726019559956,0.1333,57045.0,57023.0,0.17594018]
[1726019560178,0.002,57039.0,57028.0,0.25457268]
[1726019560394,0.002,57039.0,57029.0,0.30139745]
[1726019560619,0.03178916,57041.0,57029.0,0.32439745]
[1726019560863,0.03178916,57041.0,57030.0,0.1625]
[1726019561085,0.03178916,57041.0,57031.0,0.29894018]
[1726019561328,0.03,57037.0,57031.0,0.1]
[1726019561561,0.03,57040.0,57032.0,0.05158792]
[1726019562231,0.03,57040.0,57032.0,0.05196712]
[1726019563628,0.03,57040.0,57032.0,0.05396712]
[1726019564078,0.002,57036.0,57032.0,0.03096712]
[1726019564767,0.030818,57038.0,57032.0,0.03096712]
[1726019564975,0.030818,57038.0,57032.0,0.0003792]
[1726019565200,0.002,57037.0,57032.0,0.0003792]
[1726019565416,0.002,57037.0,57032.0,0.0013792]
[1726019565670,0.030818,57038.0,57032.0,0.0013792]
[1726019565886,0.03,57035.0,57034.0,0.175334]
[1726019566545,0.03,57035.0,57034.0,0.19290532]
[1726019567327,0.03,57035.0,57032.0,0.0103792]
[1726019567328,0.26712616,57033.0,57032.0,0.0103792]
[1726019567556,0.26712616,57033.0,57032.0,0.1857192]
[1726019567557,0.08978916,57033.0,57032.0,0.1857192]
[1726019567999,0.09178916,57033.0,57032.0,0.1857192]
[1726019568229,0.02978916,57033.0,57032.0,0.01895112]
[1726019568453,0.02978916,57033.0,57032.0,0.0003792]
[1726019568686,0.060819,57035.0,57032.0,0.0003792]
[1726019568687,0.09160816,57035.0,57032.0,0.0003792]
[1726019568912,0.001819,57035.0,57032.0,0.0003792]
[1726019569143,0.000819,57035.0,57032.0,0.0003792]
[1726019569623,0.000819,57035.0,57032.0,0.0023792]
[1726019570091,0.000819,57035.0,57032.0,0.0003792]
[1726019571469,0.001819,57035.0,57033.0,0.084]
[1726019571698,0.001819,57035.0,57033.0,0.44014018]
[1726019571921,0.001819,57035.0,57034.0,0.10721084]
[1726019572192,1e-06,57038.0,57037.0,0.16441084]
[1726019572435,0.52782518,57058.0,57041.0,0.00021084]
[1726019572672,0.52782518,57058.0,57049.0,0.421891]
[1726019572904,0.52782518,57058.0,57045.0,0.00021084]
[1726019572905,0.52782518,57058.0,57050.0,0.1]
[1726019573139,0.032,57060.0,57050.0,0.123]
[1726019573379,0.032,57060.0,57051.0,0.0123]
[1726019573605,0.002,57059.0,57052.0,0.023]
[1726019573849,0.03,57053.0,57050.0,0.1]
[1726019574076,0.03,57053.0,57043.0,0.10021084]
[1726019574299,0.03,57053.0,57044.0,0.04559108]
[1726019575036,0.1041,57055.0,57044.0,0.04559108]
[1726019575287,0.08978916,57059.0,57045.0,0.59783118]
[1726019575521,0.001,57058.0,57049.0,0.007]
[1726019575753,0.03,57056.0,57049.0,0.007]
[1726019575987,0.03,57056.0,57049.0,0.02]
[1726019576189,0.02978916,57059.0,57049.0,0.013]
[1726019576471,0.001,57055.0,57049.0,0.013]
[1726019576925,0.001,57055.0,57050.0,0.023]
[1726019577389,0.001,57055.0,57045.0,0.444891]
[1726019577615,0.001,57055.0,57046.0,0.27594018]
[1726019577843,0.03,57060.0,57047.0,0.023]
[1726019578091,0.03,57060.0,57048.0,0.17594018]
[1726019578334,0.001,57056.0,57049.0,0.20408312]
[1726019578599,0.001,57056.0,57050.0,0.59783118]
[1726019578846,0.02978916,57063.0,57051.0,0.123]
[1726019579060,0.001,57055.0,57052.0,0.17594018]
[1726019579284,0.001,57055.0,57053.0,0.123]
[1726019579503,0.03178916,57063.0,57054.0,0.2603233]
[1726019579725,0.03178916,57063.0,57055.0,0.123]
[1726019580448,0.03,57060.0,57055.0,0.1]
[1726019580935,0.03,57060.0,57047.0,0.00021084]
[1726019581151,0.05478916,57063.0,57048.0,0.17594018]
[1726019581392,0.18888916,57069.0,57051.0,0.1642]
[1726019581626,0.000819,57063.0,57056.0,0.421891]
[1726019581847,0.000819,57063.0,57057.0,0.123]
[1726019583052,0.000819,57063.0,57058.0,0.17594018]
[1726019583266,0.000819,57063.0,57059.0,0.15289402]
[1726019583486,0.000819,57063.0,57060.0,0.17594018]
[1726019583701,0.000819,57063.0,57061.0,0.123]
[1726019584207,0.000819,57063.0,57062.0,0.17594018]
[1726019584420,0.000819,57063.0,57062.0,0.38294018]
[1726019584664,0.000819,57063.0,57062.0,0.46314018]
[1726019584917,0.000819,57063.0,57062.0,0.53488193]
[1726019585153,0.000819,57063.0,57062.0,0.54009277]
[1726019585842,0.000819,57063.0,57062.0,0.55481092]
[1726019586520,0.000819,57063.0,57062.0,0.56881092]
[1726019586955,0.000819,57063.0,57062.0,0.55481092]
[1726019588551,0.000819,57063.0,57062.0,0.56581092]
[1726019590661,0.000819,57063.0,57062.0,0.111]
[1726019590888,0.000819,57063.0,57062.0,0.011]
[1726019591401,0.000819,57063.0,57062.0,0.18694018]
[1726019591614,0.000819,57063.0,57062.0,0.36704018]
[1726019592028,0.000819,57063.0,57062.0,0.39004018]
[1726019592252,0.000819,57063.0,57062.0,0.44399301]
[1726019592709,0.000819,57063.0,57062.0,0.54090385]
[1726019593119,0.000819,57063.0,57062.0,0.52990385]
[1726019593556,0.000819,57063.0,57062.0,0.54390385]
[1726019594215,0.000819,57063.0,57062.0,0.5585582]
[1726019594844,0.000819,57063.0,57062.0,0.5445582]
[1726019595333,0.000819,57063.0,57062.0,0.5585582]
[1726019596251,0.000819,57063.0,57062.0,0.5445582]
[1726019596667,0.000819,57063.0,57062.0,0.5585582]
[1726019597815,0.000819,57073.0,57066.0,0.00521084]
[1726019598029,0.000819,57073.0,57072.0,0.25427731]
[1726019598235,0.000819,57073.0,57072.0,0.45321749]
[1726019598453,0.000819,57073.0,57072.0,0.55321749]
[1726019599098,0.000819,57073.0,57072.0,0.29894018]
[1726019600012,0.000819,57073.0,57072.0,0.31294018]
[1726019600232,0.000819,57073.0,57072.0,0.34475528]
[1726019600674,0.1120662,57073.0,57072.0,0.014]
[1726019600885,0.1140662,57073.0,57072.0,0.014]
[1726019601119,0.1120662,57073.0,57072.0,0.014]
[1726019601340,0.2023662,57073.0,57072.0,0.014]
[1726019601762,0.2003662,57073.0,57072.0,0.014]
[1726019603119,0.2023662,57073.0,57072.0,0.014]
[1726019603323,0.2003662,57073.0,57072.0,0.014]
[1726019603819,0.2023662,57073.0,57072.0,0.014]
[1726019604261,0.2003662,57073.0,57072.0,0.014]
[1726019604450,0.1120662,57073.0,57072.0,0.014]
[1726019605134,0.0031662,57073.0,57072.0,0.18994018]
[1726019605352,0.0031662,57073.0,57072.0,0.35736193]
[1726019608005,0.0031662,57073.0,57072.0,0.44636193]
[1726019608665,0.0031662,57073.0,57072.0,0.35736193]
[1726019609334,0.0031662,57073.0,57072.0,0.114]
[1726019609556,0.0031662,57073.0,57072.0,0.014]
[1726019610903,0.0031662,57073.0,57072.0,0.037]
[1726019611698,0.0031662,57073.0,57072.0,0.21294018]
[1726019611943,0.0031662,57073.0,57072.0,0.31294018]
[1726019612392,0.0031662,57073.0,57072.0,0.37114287]
[1726019613538,0.0031662,57073.0,57072.0,0.18120269]
[1726019613764,0.0031662,57073.0,57072.0,0.023]
[1726019613993,0.0031662,57073.0,57072.0,0.1]
[1726019614179,0.0031662,57073.0,57072.0,0.123]
[1726019615108,0.0031662,57073.0,57072.0,0.036]
[1726019615559,0.0031662,57073.0,57072.0,0.023]
[1726019615783,0.0031662,57073.0,57071.0,0.023]
[1726019616003,0.0031662,57073.0,57072.0,0.014]
[1726019616224,0.0031662,57073.0,57072.0,0.037]
[1726019616438,0.0031662,57073.0,57072.0,0.06297083]
[1726019617327,0.0031662,57073.0,57072.0,0.04897083]
[1726019618674,0.0031662,57073.0,57072.0,0.06297083]
[1726019619374,0.0031662,57073.0,57072.0,0.04897083]
[1726019619583,0.0031662,57073.0,57072.0,0.06297083]
[1726019620225,0.1053662,57073.0,57072.0,0.023]
[1726019620437,0.1053662,57073.0,57072.0,0.014]
[1726019620689,0.1917662,57073.0,57072.0,0.014]
[1726019620903,0.2217662,57073.0,57072.0,0.014]
[1726019621161,0.98251804,57073.0,57072.0,0.014]
[1726019621376,0.98401205,57064.0,57057.0,0.001636]
[1726019621601,1.51043523,57064.0,57057.0,0.001636]
[1726019621814,1.15995223,57064.0,57057.0,0.001636]
[1726019622275,1.32553634,57064.0,57057.0,0.001636]
[1726019622492,1.75471561,57058.0,57057.0,0.001636]
[1726019622719,1.93065579,57058.0,57057.0,0.001636]
[1726019623681,0.0837,57039.0,57035.0,0.0003769]
[1726019623940,0.002,57036.0,57035.0,0.0003769]
[1726019624385,0.1851,57039.0,57035.0,0.0003769]
[1726019625523,0.1014,57039.0,57035.0,0.0003769]
[1726019626453,0.1014,57039.0,57035.0,0.0033769]
[1726019626703,0.1014,57039.0,57036.0,0.023]
[1726019627172,0.20988916,57044.0,57036.0,0.023]
[1726019627385,0.20988916,57044.0,57036.0,0.123]
[1726019627581,0.20988916,57044.0,57036.0,0.023]
[1726019628523,0.12618916,57044.0,57036.0,0.023]
[1726019628960,0.12618916,57044.0,57035.0,0.0233769]
[1726019629206,0.12618916,57044.0,57036.0,0.002]
[1726019629453,0.1014,57044.0,57037.0,0.023]
[1726019629663,0.1014,57044.0,57037.0,0.22055728]
[1726019629874,0.1014,57044.0,57038.0,0.1]
[1726019630092,0.1024,57044.0,57039.0,0.023]
[1726019630298,0.1024,57044.0,57039.0,0.123]
[1726019630521,0.1014,57044.0,57039.0,0.123]
[1726019632100,0.1014,57044.0,57039.0,0.15509342]
[1726019632323,0.1014,57049.0,57040.0,0.43044663]
[1726019632549,0.02478916,57048.0,57041.0,0.123]
[1726019632786,0.1014,57049.0,57042.0,0.17594018]
[1726019632999,0.1014,57055.0,57045.0,0.25450645]
[1726019633227,0.1014,57055.0,57046.0,0.29894018]
[1726019633883,0.001,57048.0,57046.0,0.29894018]
[1726019635266,0.1014,57055.0,57046.0,0.29894018]
[1726019635476,0.03438166,57054.0,57046.0,0.123]
[1726019635661,0.03,57054.0,57046.0,0.037]
[1726019636130,0.03,57054.0,57046.0,0.023]
[1726019636370,0.002,57048.0,57042.0,0.023]
[1726019636590,0.1014,57050.0,57043.0,0.01695255]
[1726019636817,0.1014,57055.0,57046.0,0.25450645]
[1726019637040,0.001,57048.0,57047.0,0.123]
[1726019637286,0.001,57048.0,57047.0,0.3673801]
[1726019637519,0.001,57048.0,57047.0,0.4560801]
[1726019638406,0.000818,57057.0,57047.0,0.4560801]
[1726019638619,0.000818,57057.0,57048.0,0.17594018]
[1726019638854,0.000818,57057.0,57049.0,0.123]
[1726019638855,0.001,57050.0,57049.0,0.123]
[1726019639343,0.002,57052.0,57049.0,0.123]
[1726019639561,0.002,57054.0,57049.0,0.123]
[1726019639779,0.1014,57055.0,57049.0,0.123]
[1726019640015,0.1014,57055.0,57049.0,0.21400394]
[1726019640258,0.001818,57057.0,57051.0,0.25450645]
[1726019640259,0.000818,57057.0,57051.0,0.25450645]
[1726019640514,0.000818,57057.0,57052.0,0.29894018]
[1726019640724,0.000818,57057.0,57056.0,0.25450645]
[1726019640979,0.000818,57057.0,57056.0,0.60931238]
[1726019641449,0.000818,57057.0,57056.0,0.36940554]